[Event "ECo-C Extraliga 2023-24"]
[Site "Slovakia"]
[Date "2024.02.24"]
[Round "7.2"]
[White "Mihok, Oliver"]
[Black "Mazur, Stefan"]
[Result "1/2-1/2"]
[ECO "C88"]
[WhiteElo "2535"]
[BlackElo "2440"]
[Annotator "TA"]
[PlyCount "140"]
[EventDate "2023.10.06"]
[EventType "team-tourn"]
[EventCountry "SVK"]
[SourceTitle "playchess.com"]
[Source "ChessBase"]
[SourceQuality "1"]
[TimeControl "40/5400+30:1800+30"]

{[%evp 67,140,147,144,173,162,163,142,34,45,0,130,142,161,147,199,177,256,269,317,312,286,183,313,306,309,300,429,436,393,387,546,196,219,218,211,171,189,175,214,203,198,218,222,223,208,208,189,141,203,183,235,254,224,166,225,0,0,0,0,0,0,0,0,-8,0,0,0,0,0,0,0,0,0,0,0]} 1. e4 {[%emt 0:00:03]} e5 {[%emt 0:00:07]} 2. Nf3 {[%emt 0:00:05]} Nc6 {[%emt 0:00:06]} 3. Bb5 {[%emt 0:00:04]} a6 {[%emt 0:00:44]} 4. Ba4 {[%emt 0:00:06]} Nf6 {[%emt 0:00:08]} 5. O-O {[%emt 0:00:13]} Be7 {[%emt 0:01:00]} 6. Re1 {[%emt 0:00:09]} b5 {[%emt 0:03:39]} 7. Bb3 {[%emt 0:00:12]} d6 {[%emt 0:00:14]} 8. c3 {[%emt 0:00:05]} Na5 {[%emt 0:01:16]} 9. Bc2 {[%emt 0:00:10]} c5 {[%emt 0:00:07]} 10. d4 {[%emt 0:00:08]} Qc7 {[%emt 0:00:20]} 11. d5 {[%emt 0:06:07]} O-O {[%emt 0:00:52]} 12. b3 {[%emt 0:03:36]} Bg4 {[%emt 0:10:37]} 13. h3 {[%emt 0:03:28]} Bxf3 {[%emt 0:02:01]} 14. Qxf3 {[%emt 0:00:24]} Nb7 {[%emt 0:01:57]} 15. Nd2 {[%emt 0:02:50]} Nd7 {[%emt 0:05:00]} 16. Nf1 {[%emt 0:02:29]} c4 {[%emt 0:04:41]} 17. b4 {[%emt 0:04:59]} a5 {[%emt 0:00:13]} 18. Ng3 {[%emt 0:02:50]} a4 {[%emt 0:08:48]} 19. Nf5 {[%emt 0:02:51]} Rfe8 {[%emt 0:12:10]} 20. h4 {[%emt 0:06:00]} Bf8 {[%emt 0:07:27]} 21. g3 {[%emt 0:05:30]} Nd8 {[%emt 0:09:55]} 22. h5 {[%emt 0:03:28]} g6 {[%emt 0:11:24]} 23. Nh6+ {[%emt 0:02:01]} Bxh6 {[%emt 0:12:18]} 24. Bxh6 {[%emt 0:00:05]} f6 {[%emt 0:00:16]} 25. hxg6 {[%emt 0:01:15]} hxg6 {[%emt 0:00:06]} 26. Kg2 {[%emt 0:03:11]} Nf7 {[%emt 0:03:09]} 27. Qg4 {[%emt 0:00:28]} Nh8 {[%emt 0:03:32]} 28. Rh1 {[%emt 0:01:51]} Re7 {[%emt 0:01:23]} 29. Rh4 {[%emt 0:02:43]} Qc8 {[%emt 0:00:38]} 30. Rah1 {[%emt 0:01:09]} Rh7 {[%emt 0:00:36]} 31. Qe6+ {[%emt 0:01:32]} Nf7 {[%emt 0:00:02]} 32. Rg4 {[%emt 0:02:36]} Nf8 {[%emt 0:00:11]} 33. Bxf8 {[%emt 0:03:23]} Rxh1 {[%emt 0:00:14]} 34. Kxh1 {[%emt 0:01:49]} Kxf8 {[%emt 0:00:19]} 35. Rxg6 {[%emt 0:00:48]} Qxe6 {[%emt 0:00:09]} 36. dxe6 {[%emt 0:00:04]} Ng5 {[%emt 0:00:06]} 37. Rxf6+ {[%emt 0:01:22]} (37. Kg2 $16) 37... Ke7 $14 {[%emt 0:01:24]} 38. Rh6 {[%emt 0:01:13]} Rf8 {[%emt 0:00:04]} (38... Nf3 $1 $11 {keeps the balance.}) 39. Kg2 $16 {[%emt 0:02:44]} Rf3 {[%emt 0:02:01]} 40. Bd1 $1 {[%emt 0:01:01]} (40. Rh8 Rxc3 (40... Kxe6 41. Rh6+ Kd7 42. Rh5 $15) 41. Bd1 Nxe6 (41... Kxe6 $2 42. Bg4+ Ke7 43. Rh5 $19) 42. Rh7+ Kf8 $19) 40... Rf6 {[%emt 0:00:31]} (40... Rxc3 41. Bg4 Ra3 (41... Nxe4 42. Rh7+ Kf6 43. e7) 42. Rg6 Nxe6 (42... Nxe4 43. Rg7+ Kf6 44. Rf7+ Kg5 45. e7 Nf6 46. Rxf6 Kxf6 47. e8=Q) 43. Rxe6+ $18) (40... Rf8 $16) 41. Rh4 $1 $18 {[%emt 0:33:46]} Kxe6 {[%emt 0:09:03]} (41... Rf8 {might work better.} 42. Rg4 (42. Bg4 Nxe4 43. f4 Nxc3 $11) 42... Kf6) 42. Bg4+ $18 {[%emt 0:00:00]} Ke7 {[%emt 0:00:15]} 43. f3 {[%emt 0:00:00]} Rf8 {[%emt 0:16:40]} 44. Rh6 {[%emt 0:00:00]} Rg8 {[%emt 0:01:57]} (44... Rd8 $142 45. Rg6 Nf7) 45. Bf5 $18 {[%emt 0:00:00]} a3 {[%emt 0:01:13]} 46. Kf2 {[%emt 0:00:00]} Rd8 {[%emt 0:00:20]} (46... Nf7 $142 47. Re6+ Kd8) 47. Rg6 $18 {[%emt 0:00:00]} Nf7 {[%emt 0:02:08]} 48. Be6 {[%emt 0:00:00]} Nh8 {[%emt 0:01:17]} (48... Rh8 $142) 49. Rh6 $2 {[%emt 0:00:00]} (49. Rg8) 49... Nf7 $18 {[%emt 0:00:06]} 50. Bxf7 {[%emt 0:00:00]} Kxf7 {[%emt 0:00:02]} 51. Rh7+ {[%emt 0:00:00]} Kf6 {[%emt 0:00:45]} 52. Ra7 {[%emt 0:00:00]} d5 {[%emt 0:00:03]} 53. Ra6+ {[%emt 0:00:00]} (53. Rxa3 d4 $11) 53... Kg5 {[%emt 0:01:10] [#]} 54. exd5 $1 {[%emt 0:00:00]} (54. Rxa3 dxe4 55. Ke3 (55. fxe4 Rd2+ 56. Ke1 Rg2 $14) 55... exf3 56. Kxf3 Rd3+ 57. Ke4 Kf6) 54... Rxd5 {[%emt 0:00:02]} 55. Rxa3 {[%emt 0:00:00]} Kf5 {[%emt 0:00:50]} 56. Ra5 {[%emt 0:01:17]} Rd2+ {[%emt 0:00:07]} 57. Kf1 {[%emt 0:02:11]} Rd3 {[%emt 0:00:24]} 58. Kg2 {[%emt 0:00:09]} ({Worse is} 58. Rxb5 Rxf3+ 59. Ke1 Ke4 $11) 58... Rd2+ {[%emt 0:01:19]} (58... Rxc3 {was necessary.} 59. Rxb5 Rc2+ 60. Kh3 Rxa2) 59. Kh3 $18 {[%emt 0:01:20]} Rd3 {[%emt 0:00:09]} 60. Rxb5 {[%emt 0:01:09]} Rxf3 {[%emt 0:00:07] [#]} 61. a4 $2 {[%emt 0:02:25]} (61. Rc5 $1 $18 Rxc3 62. b5) 61... Rxc3 $11 {[%emt 0:00:06]} 62. a5 {[%emt 0:00:24]} Ra3 {[%emt 0:02:23]} 63. Rc5 {[%emt 0:00:45]} c3 {[%emt 0:00:03]} 64. Kh4 {[%emt 0:02:41]} Ke4 {[%emt 0:01:38]} 65. a6 {[%emt 0:04:58]} Kd3 {[%emt 0:00:18]} (65... Rxa6 66. Rxc3 Kd4 67. b5) 66. Ra5 {[%emt 0:05:40]} Rxa5 {[%emt 0:00:17]} 67. bxa5 {[%emt 0:00:04]} c2 {[%emt 0:00:04]} 68. a7 {[%emt 0:00:02]} c1=Q {[%emt 0:00:04]} 69. a8=Q Qh6+ {[%emt 0:00:20]} 70. Kg4 {[%emt 0:00:09]} Qg6+ {[%emt 0:00:17]} 1/2-1/2

[Event "ECo-C Extraliga 2023-24"]
[Site "Slovakia"]
[Date "2024.02.24"]
[Round "7.2"]
[White "Horvath, Csaba"]
[Black "Cernousek, Lukas"]
[Result "1/2-1/2"]
[ECO "A08"]
[WhiteElo "2493"]
[BlackElo "2447"]
[Annotator "TA"]
[PlyCount "120"]
[EventDate "2023.10.06"]
[EventType "team-tourn"]
[EventCountry "SVK"]
[SourceTitle "playchess.com"]
[Source "ChessBase"]
[SourceQuality "1"]
[TimeControl "40/5400+30:1800+30"]

{[%evp 24,120,35,37,36,35,32,33,31,29,42,32,39,33,31,32,35,29,35,33,31,35,35,35,35,35,27,0,32,38,40,16,25,18,40,20,20,1,1,1,6,2,2,0,0,0,0,0,0,0,0,0,0,0,0,0,0,0,0,0,0,0,0,0,0,0,0,0,0,-17,-8,-8,0,-9,0,0,0,0,0,0,0,0,0,0,0,0,0,0,0,0,0,0,0,0,0,0,0,0,0]} 1. Nf3 {[%emt 0:00:06]} d5 {[%emt 0:00:26]} 2. g3 {[%emt 0:00:24]} c5 {[%emt 0:00:12]} 3. Bg2 {[%emt 0:00:08]} Nf6 {[%emt 0:00:07]} 4. O-O {[%emt 0:00:17]} Nc6 {[%emt 0:02:24]} 5. d4 {[%emt 0:01:17]} e6 {[%emt 0:00:10]} 6. c4 {[%emt 0:01:14]} dxc4 {[%emt 0:01:29]} 7. Qa4 {[%emt 0:01:35]} Bd7 {[%emt 0:01:01]} 8. Qxc4 {[%emt 0:00:24]} cxd4 {[%emt 0:00:34]} 9. Nxd4 {[%emt 0:00:53]} Rc8 {[%emt 0:00:19]} 10. Nc3 {[%emt 0:02:47]} Nxd4 {[%emt 0:00:19]} 11. Qxd4 {[%emt 0:00:03]} Bc5 {[%emt 0:00:09]} 12. Qh4 {[%emt 0:00:38]} Bc6 {[%emt 0:00:21]} 13. Rd1 {[%emt 0:07:09]} Qa5 {[%emt 0:00:07]} 14. Bg5 {[%emt 0:07:00]} Be7 {[%emt 0:00:29]} 15. Bxc6+ {[%emt 0:02:11]} Rxc6 {[%emt 0:00:08] White is slightly better.} 16. Ne4 {[%emt 0:08:25]} Qf5 {[%emt 0:00:11]} 17. Bxf6 {[%emt 0:14:18]} Bxf6 {[%emt 0:00:19]} 18. Nxf6+ {[%emt 0:02:01]} Qxf6 {[%emt 0:00:03]} 19. Qxf6 {[%emt 0:04:34]} gxf6 {[%emt 0:00:02]} 20. Rac1 {[%emt 0:01:15]} Rxc1 {[%emt 0:00:11]} 21. Rxc1 $11 {[%emt 0:00:02][%mdl 4096] Endgame. KR-KR} Kd7 {[%emt 0:00:15] Repels Rc8} 22. Kg2 {[%emt 0:00:43]} Rg8 {[%emt 0:09:46]} 23. Rc4 {[%emt 0:03:43]} Rg5 {[%emt 0:01:24]} 24. Rf4 {[%emt 0:02:41]} Ke7 {[%emt 0:01:27]} 25. Rc4 {[%emt 0:09:14]} Kd7 {[%emt 0:00:03] Against Rc7+} 26. Rh4 {[%emt 0:01:24]} h5 {[%emt 0:02:54]} 27. Rf4 {[%emt 0:04:10]} Ke7 {[%emt 0:02:20]} 28. Rc4 {[%emt 0:01:50]} Kd7 {[%emt 0:02:56] Against Rc7+} 29. Kf3 {[%emt 0:03:35]} a5 {[%emt 0:05:55] The position is equal.} 30. h4 {[%emt 0:06:50]} Rb5 {[%emt 0:10:35]} 31. b3 {[%emt 0:00:16]} f5 {[%emt 0:00:29]} 32. Kf4 {[%emt 0:02:14]} f6 {[%emt 0:03:32]} 33. f3 {[%emt 0:05:19]} Re5 {[%emt 0:35:11]} 34. e4 {[%emt 0:01:30]} b5 {[%emt 0:00:10]} 35. Rd4+ {[%emt 0:01:27]} Ke7 {[%emt 0:00:14]} 36. Rd2 {[%emt 0:03:50]} fxe4 {[%emt 0:17:05]} 37. fxe4 {[%emt 0:00:03]} Rc5 {[%emt 0:00:05]} 38. g4 {[%emt 0:02:02]} hxg4 {[%emt 0:00:03]} 39. Kxg4 {[%emt 0:00:07]} Rc1 {[%emt 0:01:42]} 40. Rg2 {[%emt 0:02:06]} Kd6 {[%emt 0:04:45]} 41. Kh5 {[%emt 0:02:39]} Rc8 {[%emt 0:06:54]} 42. Rg7 {[%emt 0:08:13]} Rh8+ {[%emt 0:10:17]} 43. Kg4 {[%emt 0:00:02]} Ke5 {[%emt 0:00:18]} 44. Rg6 {[%emt 0:01:49]} Rd8 {[%emt 0:05:56]} 45. h5 {[%emt 0:02:43]} Rd1 {[%emt 0:04:45]} 46. h6 {[%emt 0:05:19]} Rg1+ {[%emt 0:00:09]} 47. Kh5 {[%emt 0:00:03]} Rh1+ {[%emt 0:00:06]} 48. Kg4 {[%emt 0:00:04]} b4 {[%emt 0:00:39]} 49. Kf3 {[%emt 0:01:36]} Rh3+ {[%emt 0:02:37]} 50. Kg4 {[%emt 0:01:53]} Rh2 {[%emt 0:00:18]} (50... Rh1 $5) 51. Kg3 {[%emt 0:00:55]} Rh1 {[%emt 0:00:08] [#] ( -> ...Rg1+)} 52. Kf3 {[%emt 0:03:26]} f5 {[%emt 0:00:42]} 53. exf5 {[%emt 0:00:53]} Kxf5 {[%emt 0:00:04]} 54. Rg7 {[%emt 0:00:08]} Rh3+ {[%emt 0:01:36]} 55. Kg2 $1 {[%emt 0:00:29]} Rxh6 {[%emt 0:00:05]} 56. Ra7 {[%emt 0:00:07]} Ke4 {[%emt 0:03:23] [#] aiming for ...Rg6+.} 57. Rxa5 {[%emt 0:00:05]} Kd4 {[%emt 0:00:34]} 58. Ra4 {[%emt 0:01:31]} Kc3 {[%emt 0:00:06] Threatens to win with ...e5.} 59. a3 {[%emt 0:00:38]} bxa3 {[%emt 0:00:34]} 60. Rxa3 {[%emt 0:00:03]} e5 {[%emt 0:00:34] Weighted Error Value: White=0.03 (flawless) /Black=0.01 (flawless) .  OK:         	White=16    	Black=27     Best:        	White=4     	Black=1      Strong:       	White=1     	---} 1/2-1/2

[Event "ECo-C Extraliga 2023-24"]
[Site "Slovakia"]
[Date "2024.02.24"]
[Round "7.2"]
[White "Bokros, Albert"]
[Black "Laurusas, Tomas"]
[Result "1/2-1/2"]
[ECO "A34"]
[WhiteElo "2460"]
[BlackElo "2590"]
[Annotator "RC"]
[PlyCount "57"]
[EventDate "2023.10.06"]
[EventType "team-tourn"]
[EventCountry "SVK"]
[SourceTitle "playchess.com"]
[Source "ChessBase"]
[SourceQuality "1"]
[TimeControl "40/5400+30:1800+30"]

1. e4 {[%emt 0:00:09]} c5 {[%emt 0:00:07]} 2. Nf3 {[%emt 0:00:14]} e6 {[%emt 0:00:10]} 3. c4 {[%emt 0:01:41]} Nc6 {[%emt 0:00:33]} 4. Nc3 {[%emt 0:00:11]} Nf6 {[%emt 0:02:41]} 5. Be2 {[%emt 0:00:28]} Qb6 {[%emt 0:17:06]} 6. O-O {[%emt 0:03:33]} Be7 {[%emt 0:00:26]} 7. d3 {[%emt 0:01:44]} d6 {[%emt 0:02:37]} 8. Rb1 {[%emt 0:01:23]} O-O {[%emt 0:05:25]} 9. a3 {[%emt 0:01:24]} a5 {[%emt 0:14:33]} 10. h3 {[%emt 0:02:21]} Bd7 {[%emt 0:08:26]} 11. Be3 {[%emt 0:01:47]} e5 {[%emt 0:03:15]} 12. Bg5 {[%emt 0:07:39]} Qd8 {[%emt 0:04:08]} 13. Qd2 {[%emt 0:05:45]} Be6 {[%emt 0:14:27]} 14. Nd5 {[%emt 0:06:53]} h6 {[%emt 0:07:14]} 15. Bxf6 {[%emt 0:06:27]} Bxf6 {[%emt 0:00:06]} 16. Bd1 {[%emt 0:03:13]} Be7 {[%emt 0:06:25]} 17. Ne3 {[%emt 0:09:17]} Bg5 {[%emt 0:03:45]} 18. Ba4 {[%emt 0:05:38]} f5 {[%emt 0:04:16]} 19. exf5 {[%emt 0:05:36]} Bxf5 {[%emt 0:00:02]} 20. Bxc6 {[%emt 0:02:45]} bxc6 {[%emt 0:00:04]} 21. Qe2 {[%emt 0:00:36]} Bg6 {[%emt 0:02:07]} 22. Nxg5 {[%emt 0:02:45]} Qxg5 {[%emt 0:00:02]} 23. b4 {[%emt 0:00:29]} axb4 {[%emt 0:00:29]} 24. axb4 {[%emt 0:00:06]} cxb4 {[%emt 0:00:11]} 25. Rxb4 {[%emt 0:00:10]} Ra3 {[%emt 0:02:25]} 26. Rd1 {[%emt 0:00:54]} Kh7 {[%emt 0:01:33]} 27. Rb6 {[%emt 0:02:12]} Rc8 {[%emt 0:00:16]} 28. Rb7 {[%emt 0:06:13]} Bh5 {[%emt 0:00:44]} 29. Ng4 {[%emt 0:02:13]} 1/2-1/2

[Event "ECo-C Extraliga 2023-24"]
[Site "Slovakia"]
[Date "2024.02.24"]
[Round "7.2"]
[White "Manik, Mikulas"]
[Black "Hrbek, Stepan"]
[Result "1/2-1/2"]
[ECO "C78"]
[WhiteElo "2342"]
[BlackElo "2426"]
[Annotator "ChessBase"]
[PlyCount "207"]
[EventDate "2023.10.06"]
[EventType "team-tourn"]
[EventCountry "SVK"]
[SourceTitle "playchess.com"]
[Source "ChessBase"]
[SourceQuality "1"]
[TimeControl "40/5400+30:1800+30"]

1. e4 {[%emt 0:00:02]} e5 {[%emt 0:00:23]} 2. Nf3 {[%emt 0:00:03]} Nc6 {[%emt 0:00:16]} 3. Bb5 {[%emt 0:00:04]} a6 {[%emt 0:00:20]} 4. Ba4 {[%emt 0:00:03]} Nf6 {[%emt 0:00:34]} 5. O-O {[%emt 0:00:11]} b5 {[%emt 0:00:12]} 6. Bb3 {[%emt 0:00:03]} Bc5 {[%emt 0:00:07]} 7. a4 {[%emt 0:01:19]} Rb8 {[%emt 0:00:12]} 8. c3 {[%emt 0:05:59]} d6 {[%emt 0:00:20]} 9. d4 {[%emt 0:00:07]} Bb6 {[%emt 0:00:06]} 10. a5 {[%emt 0:00:10]} Ba7 {[%emt 0:00:17]} 11. h3 {[%emt 0:03:41]} Bb7 {[%emt 0:00:29]} 12. Be3 {[%emt 0:01:02]} Nxe4 {[%emt 0:00:36]} 13. dxe5 {[%emt 0:13:53]} Bxe3 {[%emt 0:09:54]} 14. fxe3 {[%emt 0:00:07]} O-O {[%emt 0:00:33]} 15. exd6 {[%emt 0:09:02]} Qxd6 {[%emt 0:01:56]} 16. Qxd6 {[%emt 0:01:01]} Nxd6 {[%emt 0:00:38]} 17. Nbd2 {[%emt 0:02:14]} Rbe8 {[%emt 0:10:43]} 18. e4 {[%emt 0:03:40]} Nxe4 {[%emt 0:22:09]} 19. Nxe4 {[%emt 0:01:18]} Rxe4 {[%emt 0:00:39]} 20. Ng5 {[%emt 0:01:44]} Re7 {[%emt 0:00:15]} 21. Nxf7 {[%emt 0:05:24]} Rfxf7 {[%emt 0:03:05]} 22. Rad1 {[%emt 0:03:27]} Bc8 {[%emt 0:02:16]} 23. Rxf7 {[%emt 0:00:51]} Rxf7 {[%emt 0:00:14]} 24. Rf1 {[%emt 0:01:15]} Nd8 {[%emt 0:05:39]} 25. Bxf7+ {[%emt 0:00:29]} Nxf7 {[%emt 0:00:05]} 26. Re1 {[%emt 0:05:37]} Kf8 {[%emt 0:00:45]} 27. Kf2 {[%emt 0:01:29]} Nd8 {[%emt 0:09:18]} 28. g4 {[%emt 0:04:47]} Ne6 {[%emt 0:01:48]} 29. Ke3 {[%emt 0:02:12]} Bb7 {[%emt 0:01:09]} 30. h4 {[%emt 0:00:46]} h6 {[%emt 0:01:35]} 31. Rf1+ {[%emt 0:02:15]} Ke7 {[%emt 0:00:22]} 32. b4 {[%emt 0:02:06]} Nf8 {[%emt 0:12:29]} 33. Kd4 {[%emt 0:05:37]} Bc8 {[%emt 0:01:07]} 34. Re1+ {[%emt 0:06:35]} Ne6+ {[%emt 0:06:18]} 35. Ke5 {[%emt 0:00:18]} g6 {[%emt 0:00:18]} 36. c4 {[%emt 0:05:52]} bxc4 {[%emt 0:03:41]} 37. Rc1 {[%emt 0:00:35]} c6 {[%emt 0:00:10]} 38. Rxc4 {[%emt 0:00:11]} Bd7 {[%emt 0:01:17]} 39. Re4 {[%emt 0:07:39]} Nd8 {[%emt 0:00:33]} 40. g5 {[%emt 0:01:51]} hxg5 {[%emt 0:04:08]} 41. hxg5 {[%emt 0:30:28]} Nf7+ {[%emt 0:33:21]} 42. Kf4+ {[%emt 0:01:53]} Be6 {[%emt 0:00:00]} 43. Re2 {[%emt 0:00:00]} Kd6 {[%emt 0:00:00]} 44. Rd2+ {[%emt 0:00:00]} Bd5 {[%emt 0:00:00]} 45. Rh2 {[%emt 0:00:00]} Ne5 {[%emt 0:00:00]} 46. Rh7 {[%emt 0:00:00]} Be6 {[%emt 0:00:00]} 47. Ke3 {[%emt 0:00:00]} Bf5 {[%emt 0:00:00]} 48. Ra7 {[%emt 0:00:00]} Bd3 {[%emt 0:00:00]} 49. Kd4 {[%emt 0:00:00]} Bf1 {[%emt 0:00:00]} 50. Ra8 {[%emt 0:00:00]} Nf3+ {[%emt 0:00:00]} 51. Ke3 {[%emt 0:00:00]} Nxg5 {[%emt 0:00:00]} 52. Rg8 {[%emt 0:00:00]} Ne6 {[%emt 0:00:57]} 53. Rxg6 {[%emt 0:00:00]} Kd5 {[%emt 0:00:02]} 54. Kd2 {[%emt 0:00:00]} Nd4 {[%emt 0:00:27]} 55. Rg5+ {[%emt 0:00:00]} Kd6 {[%emt 0:01:04]} 56. Rg6+ {[%emt 0:00:00]} Ne6 {[%emt 0:00:07]} 57. Kc3 {[%emt 0:00:00]} Bb5 {[%emt 0:00:25]} 58. Rh6 {[%emt 0:00:00]} Ke5 {[%emt 0:00:23]} 59. Rh5+ {[%emt 0:00:00]} Ke4 {[%emt 0:00:11]} 60. Rh8 {[%emt 0:00:00]} Nc7 {[%emt 0:03:56]} 61. Rh4+ {[%emt 0:00:00]} Ke5 {[%emt 0:00:10]} 62. Rh5+ {[%emt 0:00:00]} Ke4 {[%emt 0:00:08]} 63. Rh4+ {[%emt 0:00:00]} Kd5 {[%emt 0:00:04]} 64. Rh5+ {[%emt 0:00:00]} Kd6 {[%emt 0:00:04]} 65. Rh6+ {[%emt 0:00:00]} Ne6 {[%emt 0:00:05]} 66. Rh4 {[%emt 0:00:00]} Be2 {[%emt 0:01:01]} 67. Rh2 {[%emt 0:00:00]} Bf3 {[%emt 0:00:35]} 68. Rh6 {[%emt 0:00:00]} Be2 {[%emt 0:00:12]} 69. Rh2 {[%emt 0:00:00]} Nf4 {[%emt 0:01:04]} 70. Rh6+ {[%emt 0:00:00]} Kd5 {[%emt 0:00:14]} 71. Rh8 {[%emt 0:00:00]} Ke5 {[%emt 0:01:45]} 72. Re8+ {[%emt 0:00:28]} Ne6 {[%emt 0:00:15]} 73. Re7 {[%emt 0:00:14]} Kd6 {[%emt 0:01:01]} 74. Rh7 {[%emt 0:00:05]} Nc7 {[%emt 0:00:25]} 75. Rh6+ {[%emt 0:00:03]} Kd5 {[%emt 0:00:07]} 76. Rh2 {[%emt 0:00:24]} Nb5+ {[%emt 0:00:12]} 77. Kb2 {[%emt 0:00:15]} Bd3 {[%emt 0:00:46]} 78. Rh5+ {[%emt 0:02:01]} Kd4 {[%emt 0:00:27]} 79. Rh4+ {[%emt 0:00:03]} Be4 {[%emt 0:00:19]} 80. Kb3 {[%emt 0:01:27]} Nd6 {[%emt 0:00:11]} 81. Rg4 {[%emt 0:01:41]} Nf5 {[%emt 0:00:43]} 82. Kb2 {[%emt 0:00:26]} Ne3 {[%emt 0:02:11]} 83. Rh4 {[%emt 0:00:22]} Nf5 {[%emt 0:00:16]} 84. Rg4 {[%emt 0:00:12]} Ne3 {[%emt 0:01:39]} 85. Rh4 {[%emt 0:00:12]} Nc4+ {[%emt 0:00:01]} 86. Kc1 {[%emt 0:02:40]} Ne3 {[%emt 0:01:02]} 87. Kb2 {[%emt 0:00:09]} Kd3 {[%emt 0:00:28]} 88. Rh8 {[%emt 0:01:43]} Bd5 {[%emt 0:00:17]} 89. Ra8 {[%emt 0:00:32]} Bc4 {[%emt 0:00:06]} 90. Rd8+ {[%emt 0:00:06]} Nd5 {[%emt 0:00:13]} 91. Rd6 {[%emt 0:00:12]} Bb5 {[%emt 0:00:08]} 92. Kb3 {[%emt 0:00:43]} Kd4 {[%emt 0:01:25]} 93. Rd8 {[%emt 0:00:07]} Bc4+ {[%emt 0:00:19]} 94. Kb2 {[%emt 0:00:40]} Ke3 {[%emt 0:00:58]} 95. Re8+ {[%emt 0:00:32]} Kd2 {[%emt 0:00:24]} 96. Rd8 {[%emt 0:01:19]} Bd3 {[%emt 0:00:51]} 97. Rb8 {[%emt 0:00:07]} Nc3 {[%emt 0:00:32]} 98. Rd8 {[%emt 0:00:31]} Nd5 {[%emt 0:00:05]} 99. Rb8 {[%emt 0:00:05]} Bb5 {[%emt 0:00:53]} 100. Kb3 {[%emt 0:00:30]} Kd3 {[%emt 0:00:15]} 101. Rd8 {[%emt 0:00:13]} Kd4 {[%emt 0:00:25]} 102. Rd6 {[%emt 0:00:13]} Ke5 {[%emt 0:00:46]} 103. Rd8 {[%emt 0:00:07]} Ke4 {[%emt 0:00:15]} 104. Re8+ {[%emt 0:00:05]} 1/2-1/2

[Event "ECo-C Extraliga 2023-24"]
[Site "Slovakia"]
[Date "2024.02.24"]
[Round "7.2"]
[White "Solcan, Martin"]
[Black "Simacek, Pavel"]
[Result "0-1"]
[ECO "A00"]
[WhiteElo "2182"]
[BlackElo "2456"]
[Annotator "ChessBase"]
[PlyCount "86"]
[EventDate "2023.10.06"]
[EventType "team-tourn"]
[EventCountry "SVK"]
[SourceTitle "playchess.com"]
[Source "ChessBase"]
[SourceQuality "1"]
[TimeControl "40/5400+30:1800+30"]

1. g3 {[%emt 0:00:03]} e5 {[%emt 0:00:18]} 2. c4 {[%emt 0:00:05]} c6 {[%emt 0:00:29]} 3. d4 Bb4+ {[%emt 0:00:24]} 4. Bd2 {[%emt 0:00:33]} Bxd2+ {[%emt 0:00:25]} 5. Qxd2 {[%emt 0:00:08]} d6 {[%emt 0:00:07]} 6. Nc3 {[%emt 0:02:36]} Nf6 {[%emt 0:00:36]} 7. Bg2 {[%emt 0:02:24]} O-O {[%emt 0:01:05]} 8. dxe5 {[%emt 0:01:59]} dxe5 {[%emt 0:00:08]} 9. Qxd8 {[%emt 0:00:14]} Rxd8 {[%emt 0:00:03]} 10. Nf3 {[%emt 0:00:07]} Re8 {[%emt 0:03:42]} 11. O-O {[%emt 0:03:02]} e4 {[%emt 0:05:41]} 12. Nd4 {[%emt 0:03:19]} Na6 {[%emt 0:02:25]} 13. Rfd1 {[%emt 0:02:18]} Kf8 {[%emt 0:00:50]} 14. Rac1 {[%emt 0:04:57]} Re5 {[%emt 0:02:48]} 15. a3 {[%emt 0:04:37]} Bd7 {[%emt 0:02:59]} 16. b4 {[%emt 0:04:48]} Nc7 {[%emt 0:19:36]} 17. Nb3 {[%emt 0:02:32]} Bf5 {[%emt 0:06:37]} 18. Rd6 {[%emt 0:12:13]} Ke7 {[%emt 0:01:45]} 19. Rdd1 {[%emt 0:08:51]} Rd8 {[%emt 0:14:22]} 20. Na5 {[%emt 0:00:41]} Rxd1+ {[%emt 0:03:56]} 21. Rxd1 {[%emt 0:00:12]} Bc8 {[%emt 0:00:04]} 22. Rd4 {[%emt 0:07:35]} c5 {[%emt 0:04:07]} 23. Rd1 {[%emt 0:01:45]} cxb4 {[%emt 0:02:21]} 24. axb4 {[%emt 0:00:02]} Na6 {[%emt 0:00:23]} 25. b5 {[%emt 0:00:41]} Nc5 {[%emt 0:00:09]} 26. Rb1 {[%emt 0:11:57]} Be6 {[%emt 0:06:01]} 27. f4 {[%emt 0:01:37]} exf3 {[%emt 0:00:06]} 28. Bxf3 {[%emt 0:00:13]} Re3 {[%emt 0:04:14]} 29. Rc1 {[%emt 0:00:12]} b6 {[%emt 0:13:42]} 30. Nc6+ {[%emt 0:00:22]} Kf8 {[%emt 0:00:13]} 31. Kf2 {[%emt 0:00:27]} Rxc3 {[%emt 0:00:42]} 32. Rxc3 {[%emt 0:01:58]} Nfe4+ {[%emt 0:00:04]} 33. Ke3 {[%emt 0:00:16]} Nxc3 {[%emt 0:00:06]} 34. Kd4 {[%emt 0:00:14]} N3a4 {[%emt 0:01:00]} 35. Nxa7 {[%emt 0:00:15]} Nb3+ {[%emt 0:01:01]} 36. Kd3 {[%emt 0:00:21]} Nbc5+ {[%emt 0:00:35]} 37. Kd4 {[%emt 0:00:24]} Nb3+ {[%emt 0:00:36]} 38. Kd3 {[%emt 0:00:05]} Na5 {[%emt 0:00:07]} 39. Bd5 {[%emt 0:01:09]} Nb2+ {[%emt 0:00:49]} 40. Kc3 {[%emt 0:01:40]} Nbxc4 {[%emt 0:00:19]} 41. Bxe6 {[%emt 0:30:28]} fxe6 {[%emt 0:30:05]} 42. Kb4 {[%emt 0:00:10]} Nd6 {[%emt 0:01:02]} 43. e4 {[%emt 0:00:40]} e5 {[%emt 0:00:05]} 0-1

[Event "ECo-C Extraliga 2023-24"]
[Site "Slovakia"]
[Date "2024.02.24"]
[Round "7.3"]
[White "Balogh, Csaba"]
[Black "Finek, Vaclav"]
[Result "1/2-1/2"]
[ECO "C42"]
[WhiteElo "2554"]
[BlackElo "2416"]
[Annotator "RC"]
[PlyCount "61"]
[EventDate "2023.10.06"]
[EventType "team-tourn"]
[EventCountry "SVK"]
[SourceTitle "playchess.com"]
[Source "ChessBase"]
[SourceQuality "1"]
[TimeControl "40/5400+30:1800+30"]

1. e4 {[%emt 0:00:12]} e5 {[%emt 0:00:03]} 2. Nf3 {[%emt 0:00:19]} Nf6 {[%emt 0:00:04]} 3. Nxe5 {[%emt 0:09:04]} d6 {[%emt 0:00:15]} 4. Nf3 {[%emt 0:00:14]} Nxe4 {[%emt 0:00:06]} 5. Bd3 {[%emt 0:00:22]} Nf6 {[%emt 0:00:05]} 6. O-O {[%emt 0:00:08]} Be7 {[%emt 0:00:10]} 7. Re1 {[%emt 0:06:25]} O-O {[%emt 0:00:07]} 8. h3 {[%emt 0:01:38]} d5 {[%emt 0:00:55]} 9. c3 {[%emt 0:00:27]} Bd6 {[%emt 0:00:41]} 10. Bc2 {[%emt 0:01:44]} Re8 {[%emt 0:00:09]} 11. d4 {[%emt 0:01:07]} Nbd7 {[%emt 0:00:14]} 12. Bg5 {[%emt 0:12:07]} Rxe1+ {[%emt 0:00:08]} 13. Qxe1 {[%emt 0:00:10]} Nf8 {[%emt 0:00:14]} 14. Ne5 {[%emt 0:19:00]} Be7 {[%emt 0:11:02]} 15. Nd2 {[%emt 0:01:01]} Ne6 {[%emt 0:02:13]} 16. Bh4 {[%emt 0:01:24]} Nd7 {[%emt 0:07:08]} 17. Bg3 {[%emt 0:09:35]} Nxe5 {[%emt 0:01:43]} 18. Qxe5 {[%emt 0:03:49]} Bf6 {[%emt 0:00:21]} 19. Qe2 {[%emt 0:02:32]} g6 {[%emt 0:02:33]} 20. Nf3 {[%emt 0:01:11]} Ng7 {[%emt 0:02:22]} 21. Ne5 {[%emt 0:01:03]} Bf5 {[%emt 0:02:06]} 22. Ng4 {[%emt 0:05:54]} Bxg4 {[%emt 0:00:08]} 23. hxg4 {[%emt 0:03:02]} Qd7 {[%emt 0:03:06]} 24. Qf3 {[%emt 0:00:59]} Be7 {[%emt 0:03:46]} 25. Re1 {[%emt 0:00:45]} c6 {[%emt 0:01:05]} 26. Re3 {[%emt 0:08:37]} Re8 {[%emt 0:03:50]} 27. Qe2 {[%emt 0:04:32]} Bd6 {[%emt 0:03:33]} 28. Be5 {[%emt 0:03:00]} Bxe5 {[%emt 0:02:03]} 29. Rxe5 {[%emt 0:00:05]} Rxe5 {[%emt 0:02:26]} 30. Qxe5 {[%emt 0:00:09]} Qe8 {[%emt 0:03:25]} 31. Qxe8+ {[%emt 0:00:45]} 1/2-1/2